[Event "Rudolf Teschner GT 2022"]
[Site "Berlin"]
[Date "2022.05.27"]
[Round "3.6"]
[White "Roehr, Oliver"]
[Black "Strache, Michael"]
[Result "1/2-1/2"]
[ECO "C41"]
[WhiteElo "2072"]
[BlackElo "2302"]
[Annotator "TA"]
[PlyCount "121"]
[EventDate "2022.05.25"]
[EventType "swiss"]
[EventCountry "GER"]
[SourceTitle "playchess.com"]
[Source "ChessBase"]
[SourceQuality "1"]
[TimeControl "5400+30"]

{[%evp 9,121,0,47,45,58,57,88,40,37,36,69,86,61,55,94,89,106,106,123,112,123,83,126,98,120,0,0,-29,0,-35,-2,-96,-82,-116,-116,-102,-104,-129,-52,-80,-42,-68,-2,-41,-39,-35,14,21,31,2,8,10,0,10,8,3,6,5,22,8,34,23,30,14,47,25,26,26,27,29,77,64,84,8,8,14,24,0,0,0,0,0,0,0,0,0,0,0,0,0,0,0,0,0,0,0,0,0,0,0,0,0,0,0,0,0,0,0,0,0,0,0,0,0]} 1. e4 {[%emt 0:00:03]} d6 {[%emt 0:00:12]} 2. d4 {[%emt 0:00:03]} Nf6 {[%emt 0:00:04]} 3. Nc3 {[%emt 0:00:03]} e5 {[%emt 0:00:05]} 4. Nf3 {[%emt 0:00:03]} Nbd7 {[%emt 0:00:07]} 5. Rg1 {[%emt 0:00:07]} exd4 {[%emt 0:18:32]} (5... c6 $11) 6. Nxd4 $14 {[%emt 0:00:05] C41: Philidor Defence.} Nc5 {[%emt 0:01:13]} 7. Qe2 {[%emt 0:05:43]} g6 {[%emt 0:06:56] [#]} 8. g4 $146 {[%emt 0:12:15]} (8. f3 $1 $16) ({Predecessor:} 8. Bg5 h6 9. Bh4 Bg7 10. e5 O-O 11. O-O-O Re8 12. f4 g5 13. Bg3 Bg4 14. Nf3 {0-1 (29) Yuan,Q (2373)-Bortnyk,O (2604) Chess.com INT 2022}) 8... Bg7 {[%emt 0:04:44]} 9. g5 {[%emt 0:02:59]} Nh5 {[%emt 0:03:10]} 10. Be3 {[%emt 0:05:35]} O-O {[%emt 0:10:14]} 11. O-O-O {[%emt 0:03:06]} Ne6 {[%emt 0:07:16]} 12. Qd2 {[%emt 0:14:46] White is more active.} Nxd4 {[%emt 0:11:31]} 13. Bxd4 {[%emt 0:00:02]} Be6 {[%emt 0:00:08]} 14. Bxg7 {[%emt 0:07:10]} Nxg7 {[%emt 0:00:09]} 15. f4 {[%emt 0:01:23][%cal Of4f5]} f5 {[%emt 0:02:35]} 16. gxf6 {[%emt 0:06:49]} Qxf6 {[%emt 0:00:35]} 17. Ne2 {[%emt 0:02:15]} (17. f5 $1 $16 {[%cal Rf5e6]} gxf5 18. exf5 Bxf5 19. Nd5) 17... Kh8 $11 {[%emt 0:03:50]} 18. Kb1 {[%emt 0:05:20]} Rae8 {[%emt 0:02:21]} 19. Bg2 {[%emt 0:01:03]} (19. Qa5 $5 {[%cal Ra5c7]}) 19... Bc4 {[%emt 0:03:30] Black wants to play ...Bxe2.} 20. Rdf1 {[%emt 0:04:06]} (20. Rgf1 $11 {keeps the balance.}) 20... Qh4 {[%emt 0:01:33]} 21. f5 {[%emt 0:05:25]} Bxe2 {[%emt 0:03:47]} ({Inferior is} 21... Qxh2 22. Rf2 Bxe2 23. Rh1 $15) 22. Qxe2 {[%emt 0:01:01] [#]} Rxf5 {[%emt 0:01:48][%mdl 512]} 23. Qc4 {[%emt 0:03:26]} (23. Bf3 Rf4) 23... c6 {[%emt 0:03:11]} ({Stronger than} 23... Rxf1+ 24. Rxf1 Ne6 25. Qc3+ Kg8 26. e5 Qxh2 27. exd6 Qxd6 28. Bxb7 $15) (23... Rf2 $17 {[%cal Oh4h2]} 24. Bh3 Rxf1+ 25. Qxf1 Qxe4) 24. Qd4 $15 {[%emt 0:02:37]} Rxf1+ {[%emt 0:04:18]} 25. Rxf1 {[%emt 0:00:01]} Qe7 {[%emt 0:00:05]} (25... Qxh2 $15 26. Rf7 Qe5) 26. b3 {[%emt 0:03:31]} a6 {[%emt 0:02:15]} 27. Rd1 {[%emt 0:01:20][%cal Bf1d1,Bd1g1,Bg1g6][%mdl 32]} Qg5 {[%emt 0:02:15]} (27... Rd8 $15) 28. Bh3 $1 $11 {[%emt 0:01:20]} h5 {[%emt 0:01:01]} 29. Rg1 {[%emt 0:01:13]} (29. Bd7 $5 {[%cal Rd7e8]} Rd8 30. Qxd6 $11) 29... Qc5 {[%emt 0:02:43]} 30. Qxc5 {[%emt 0:01:17]} dxc5 {[%emt 0:00:01]} 31. Rxg6 {[%emt 0:00:42]} Rxe4 {[%emt 0:00:05][%mdl 4096] Endgame KRB-KRN} 32. Bc8 {[%emt 0:01:38]} Re7 {[%emt 0:00:12]} 33. Rg5 {[%emt 0:01:38]} Kh7 {[%emt 0:02:56]} 34. Rxc5 {[%emt 0:01:15]} Rc7 {[%emt 0:00:38]} 35. Bh3 {[%emt 0:01:44]} Kg6 {[%emt 0:00:52]} 36. Kb2 {[%emt 0:01:07]} Kf6 {[%emt 0:00:18]} 37. Kc3 {[%emt 0:00:31]} b6 {[%emt 0:00:38]} 38. Rc4 {[%emt 0:00:08]} a5 {[%emt 0:01:07]} 39. Kd3 {[%emt 0:00:52]} c5 {[%emt 0:00:34]} (39... Ne6 $11) 40. a4 {[%emt 0:01:39]} Ne6 {[%emt 0:01:30] [#]} 41. Bxe6 {[%emt 0:00:58]} (41. Re4 $1 $16 {[%cal Re4e6]} Ng5 42. Rf4+ Kg7 43. Bf1) 41... Kxe6 $16 {[%emt 0:00:05] KR-KR} 42. Rh4 {[%emt 0:00:11]} Rh7 $1 {[%emt 0:00:11]} 43. Kc4 {[%emt 0:00:27] And now Kb5 would win.} Ke5 {[%emt 0:00:29] The position is equal.} 44. Kb5 {[%emt 0:00:27]} Rh6 {[%emt 0:00:05]} 45. c3 {[%emt 0:00:33]} Kf5 $1 {[%emt 0:00:06]} 46. b4 {[%emt 0:00:18]} cxb4 {[%emt 0:01:34]} 47. cxb4 {[%emt 0:00:05]} axb4 {[%emt 0:00:05]} 48. Rxb4 {[%emt 0:00:09] aiming for Ka6.} Re6 {[%emt 0:01:50]} 49. Ka6 {[%emt 0:01:20] Threatens to win with Kb7.} (49. h4 $5 {[%cal Rb5a6]}) 49... Re2 {[%emt 0:00:55]} 50. h3 {[%emt 0:00:37]} Re3 $1 {[%emt 0:00:32]} 51. Rb5+ {[%emt 0:01:11]} (51. h4 $5 {[%cal Ra6b6]}) 51... Kg6 $1 {[%emt 0:00:35]} 52. Rxb6+ {[%emt 0:00:19]} Kg5 {[%emt 0:00:03]} 53. a5 {[%emt 0:00:32]} Rxh3 {[%emt 0:00:05]} 54. Kb7 {[%emt 0:00:28]} Ra3 {[%emt 0:00:16]} 55. a6 {[%emt 0:00:22]} Kg4 {[%emt 0:00:35]} 56. a7 {[%emt 0:00:17]} Rxa7+ {[%emt 0:00:05]} 57. Kxa7 {[%emt 0:00:07]} h4 {[%emt 0:00:07][%cal Bh5h4,Bh4h3,Bh3h2][%mdl 32]} 58. Rg6+ {[%emt 0:00:13]} Kf3 {[%emt 0:00:07]} 59. Kb6 {[%emt 0:00:14]} h3 {[%emt 0:00:07]} 60. Kc5 {[%emt 0:00:17]} h2 {[%emt 0:00:06]} 61. Rh6 {[%emt 0:00:55] Weighted Error Value: White=0.15 (very precise) /Black=0.12 (very precise)} 1/2-1/2

[Event "Rudolf Teschner GT 2022"]
[Site "Berlin"]
[Date "2022.05.27"]
[Round "4.1"]
[White "Van den Doel, Erik"]
[Black "Ermitsch, Magnus"]
[Result "1-0"]
[ECO "D02"]
[WhiteElo "2581"]
[BlackElo "2222"]
[Annotator "TA"]
[PlyCount "83"]
[EventDate "2022.05.25"]
[EventType "swiss"]
[EventCountry "GER"]
[SourceTitle "playchess.com"]
[Source "ChessBase"]
[SourceQuality "1"]
[TimeControl "5400+30"]

{[%evp 9,83,0,0,6,7,0,0,-10,0,0,4,0,0,0,0,-2,-2,-3,0,0,0,0,0,0,0,0,2,1,4,0,26,26,38,33,83,77,98,81,83,84,79,81,92,91,97,94,143,151,175,175,175,176,234,206,251,173,312,233,256,250,255,246,269,256,344,342,489,471,934,452,1378,1308,11859,10849,5414,2021]} 1. d4 {[%emt 0:06:27]} Nf6 {[%emt 0:00:07]} 2. Nf3 {[%emt 0:00:04]} d5 {[%emt 0:00:05]} 3. Bf4 {[%emt 0:00:04]} c5 {[%emt 0:00:04]} 4. e3 {[%emt 0:00:02]} Nc6 {[%emt 0:00:05]} 5. Nbd2 {[%emt 0:00:03]} Qb6 {[%emt 0:00:05][%csl LRb2,LRd4][%cal Rc5d4]} 6. dxc5 {[%emt 0:00:05] D02: 1 d4 d5 2 Nf3 sidelines, including 2...Nf6 3 g3 and 2...Nf6 3 Bf4.} Qxb2 {[%emt 0:00:07]} 7. Rb1 {[%emt 0:00:03]} Qc3 {[%emt 0:00:06]} 8. Bb5 {[%emt 0:05:13] The position is equal.} g6 {[%emt 0:00:17] is recently more successful than 8...e6.} 9. O-O {[%emt 0:01:20] [#] Strongly threatening Be5.} Bg7 $1 {[%emt 0:00:07]} 10. Ne5 {[%emt 0:00:20]} Bd7 {[%emt 0:17:23] [#]} 11. Rb3 $146 {[%emt 0:02:36]} ({Predecessor:} 11. Nxd7 Nxd7 12. Nb3 a6 13. Ba4 Qc4 14. Bxc6 bxc6 15. Qd3 Qa4 16. Bc7 O-O 17. Rfd1 {0-1 (40) Krzyzanowski,M (2503)-Deac,B (2625) Chess.com INT 2021}) 11... Qxc5 {[%emt 0:08:38] White must now prevent ...Nxe5.} 12. Nxd7 {[%emt 0:00:32]} Nxd7 {[%emt 0:01:05]} 13. c4 {[%emt 0:00:10]} Nb6 {[%emt 0:16:31]} 14. cxd5 {[%emt 0:35:11]} Qxd5 {[%emt 0:00:53]} 15. Nc4 {[%emt 0:05:13]} O-O {[%emt 0:13:12]} 16. Nxb6 {[%emt 0:00:40]} Qxd1 {[%emt 0:02:38]} 17. Rxd1 {[%emt 0:00:04]} axb6 {[%emt 0:00:07]} 18. a4 {[%emt 0:02:28]} e5 {[%emt 0:06:33]} 19. Bg3 {[%emt 0:03:48]} Nd8 {[%emt 0:00:38]} 20. Bd7 {[%emt 0:08:53]} Ra6 {[%emt 0:10:07]} 21. Rdb1 {[%emt 0:01:34]} f5 {[%emt 0:02:19]} (21... Ne6 $14) 22. f3 $16 {[%emt 0:08:08]} Bf6 {[%emt 0:02:35]} 23. Rxb6 {[%emt 0:00:35]} Rf7 {[%emt 0:00:42]} 24. Rxa6 {[%emt 0:02:07] White is more active.} ({Much weaker is} 24. Be8 $6 Re7 25. Rxf6 (25. Rxa6 $2 bxa6 26. Rb6 Kg7 $19) 25... Rxf6 $11) 24... bxa6 {[%emt 0:00:01]} 25. Bc8 {[%emt 0:03:47]} a5 {[%emt 0:00:28]} 26. Rc1 {[%emt 0:00:46] Inhibits Rc7.} Bg5 {[%emt 0:04:52]} 27. Bf2 {[%emt 0:00:07]} Ra7 {[%emt 0:01:31]} (27... Kf8 $142) 28. f4 {[%emt 0:02:14]} Bf6 {[%emt 0:01:49]} (28... exf4 $2 29. exf4 Bxf4 30. Rd1 $18) 29. fxe5 {[%emt 0:00:42]} Bxe5 {[%emt 0:00:10]} 30. e4 $1 {[%emt 0:00:01]} Rf7 {[%emt 0:03:32]} (30... Ra8 $142) 31. exf5 {[%emt 0:02:08]} gxf5 {[%emt 0:00:15]} 32. Rc5 {[%emt 0:01:58]} Re7 {[%emt 0:04:55]} (32... Bd6 {keeps fighting.} 33. Rc4 (33. Rxf5 Rc7 $16) 33... Bc7) 33. Bxf5 {[%emt 0:02:22] Threatens to win with Rc8.} Nb7 {[%emt 0:00:18]} 34. Rd5 {[%emt 0:00:08] Bh4 is the strong threat.} Bd6 {[%emt 0:02:01]} 35. Bd3 {[%emt 0:00:56]} Rc7 {[%emt 0:00:59]} 36. g4 {[%emt 0:02:55]} Kf8 {[%emt 0:00:47]} 37. Kg2 {[%emt 0:00:27]} Ke7 {[%emt 0:01:28]} (37... Kg8 {was necessary.} 38. h3 Be7) 38. Bxh7 $18 {[%emt 0:00:53] White is clearly winning.} Nc5 {[%emt 0:00:36] [#]} (38... Bc5 $142 39. Bh4+ Kf8) 39. Bf5 {[%emt 0:01:00]} (39. Rxd6 $142 $1 Kxd6 40. Bg3+ Kd7 41. Bf5+ Kd8 42. Bxc7+ Kxc7 43. h4) 39... Nxa4 {[%emt 0:00:37]} (39... Rc6 $142 40. Be3 Nxa4 41. Rxa5 Nb2 42. Bg5+ Kf7) 40. Bh4+ {[%emt 0:00:15] This bishop pair is nice.} Kf7 {[%emt 0:00:32]} 41. Rxd6 {[%emt 0:00:05] White threatens g5 and mate.} Nc3 {[%emt 0:00:06]} 42. Bg6+ {[%emt 0:00:58] Weighted Error Value: White=0.20 (precise) /Black=0.28 (precise)} 1-0

[Event "Rudolf Teschner GT 2022"]
[Site "Berlin"]
[Date "2022.05.27"]
[Round "4.2"]
[White "Mieck, Jale"]
[Black "Florstedt, Johannes"]
[Result "0-1"]
[ECO "B94"]
[WhiteElo "1913"]
[BlackElo "2365"]
[Annotator "TA"]
[PlyCount "44"]
[EventDate "2022.05.25"]
[EventType "swiss"]
[EventCountry "GER"]
[SourceTitle "playchess.com"]
[Source "ChessBase"]
[SourceQuality "1"]
[TimeControl "5400+30"]

{[%evp 11,44,7,15,21,24,13,19,19,26,20,37,39,20,0,21,-12,12,-154,-161,-192,-190,-260,-250,-300,-304,-414,-410,-417,-399,-487,-488,-665,-503,-452,-383]} 1. e4 {[%emt 0:00:03]} c5 {[%emt 0:00:04]} 2. Nf3 {[%emt 0:00:09]} d6 {[%emt 0:00:08]} 3. d4 {[%emt 0:00:26]} cxd4 {[%emt 0:00:06]} 4. Nxd4 {[%emt 0:00:03]} Nf6 {[%emt 0:00:09]} 5. Nc3 {[%emt 0:00:04]} a6 {[%emt 0:00:05]} 6. Bg5 {[%emt 0:01:17]} Nbd7 {[%emt 0:00:19]} 7. Qe2 {[%emt 0:01:35] 7.Qe2 is a critical line. B94: Sicilian Najdorf: 6 Bg5 Nbd7.} h6 {[%emt 0:02:09]} 8. Bh4 {[%emt 0:00:05]} g6 {[%emt 0:00:14]} 9. f4 {[%emt 0:00:23] The position is equal.} e5 {[%emt 0:00:39]} 10. fxe5 {[%emt 0:00:35]} dxe5 {[%emt 0:00:10] [#]} 11. O-O-O $1 {[%emt 0:00:20]} Qc7 {[%emt 0:01:24]} ({Weaker is} 11... exd4 12. e5 Bc5 13. exf6+ Kf8 14. Ne4 $16) 12. Nd5 {[%emt 0:07:08]} Nxd5 {[%emt 0:00:38]} 13. exd5 {[%emt 0:00:07][%cal Oe2f3]} Bd6 {[%emt 0:00:30]} 14. Ne6 $2 {[%emt 0:14:29]} fxe6 $17 {[%emt 0:08:08] [#]} 15. dxe6 $146 {[%emt 0:02:23] Hoping for Qf3.} ({Predecessor:} 15. Qd3 Nf8 16. Be2 exd5 17. Qxd5 Bf5 18. c3 Be7 19. Bg3 Bg5+ {0-1 (19) Peat,M (2014)-Can,E (2578) Reykjavik 2017}) 15... Nf8 {[%emt 0:02:59]} 16. Qf3 {[%emt 0:29:02]} (16. Qd2 {might work better.} Be7 17. Bxe7 Qxe7 18. Bd3) 16... Bxe6 $19 {[%emt 0:04:27]} 17. Qf6 {[%emt 0:05:59]} Rg8 {[%emt 0:10:59][%cal Oe6f5] White must now prevent ...Bf5!} 18. Rxd6 {[%emt 0:07:45]} Qxd6 {[%emt 0:00:19]} 19. Bd3 {[%emt 0:01:28] [#]} Qd8 $1 {[%emt 0:02:22]} 20. Qf2 {[%emt 0:01:30]} (20. Qxd8+ Rxd8) 20... Qd4 {[%emt 0:02:56] Black is clearly winning.} 21. Qe1 {[%emt 0:02:20]} g5 {[%emt 0:05:03]} 22. Bf2 {[%emt 0:01:26]} Qd5 {[%emt 0:03:14] Weighted Error Value: White=0.54/Black=0.11 (very precise)} 0-1

[Event "Rudolf Teschner GT 2022"]
[Site "Berlin"]
[Date "2022.05.27"]
[Round "4.3"]
[White "Klenburg, Michael"]
[Black "Tiarks, Jann-Christian"]
[Result "1-0"]
[ECO "B20"]
[WhiteElo "2346"]
[BlackElo "2211"]
[Annotator "TA"]
[PlyCount "91"]
[EventDate "2022.05.25"]
[EventType "swiss"]
[EventCountry "GER"]
[SourceTitle "playchess.com"]
[Source "ChessBase"]
[SourceQuality "1"]
[TimeControl "5400+30"]

{[%evp 17,91,13,18,14,12,0,13,9,25,13,42,23,26,14,32,27,32,17,38,14,63,50,55,63,81,64,64,72,121,129,121,129,129,93,160,160,211,238,240,227,219,145,183,161,268,253,310,306,481,464,512,497,492,435,621,598,529,26,135,108,133,108,110,97,106,20,70,68,177,178,848,909,936,959,850,757]} 1. e4 {[%emt 0:04:21]} c5 {[%emt 0:00:40]} 2. d3 {[%emt 0:00:15]} Nc6 {[%emt 0:01:14]} 3. g3 {[%emt 0:00:12]} g6 {[%emt 0:00:10]} 4. Bg2 {[%emt 0:00:05]} Bg7 {[%emt 0:00:04]} 5. f4 {[%emt 0:00:06]} d6 {[%emt 0:02:33]} 6. Nf3 {[%emt 0:00:07]} e6 {[%emt 0:02:23]} 7. O-O {[%emt 0:02:23]} Nge7 {[%emt 0:02:03]} 8. c3 {[%emt 0:00:16]} O-O {[%emt 0:00:45]} 9. Be3 {[%emt 0:00:13]} Rb8 {[%emt 0:00:29]} 10. Re1 {[%emt 0:00:48] B20: Sicilian: Unusual White 2nd moves.} b5 {[%emt 0:00:29]} 11. d4 {[%emt 0:00:18]} cxd4 {[%emt 0:03:28]} 12. cxd4 {[%emt 0:00:08] The position is equal.} d5 {[%emt 0:09:39]} 13. e5 {[%emt 0:00:53] [#]} Bd7 $146 {[%emt 0:01:49]} ({Predecessor:} 13... a5 14. Nc3 Bd7 15. Bf1 Na7 16. Ne2 b4 17. Nc1 Qb6 18. Nd3 Rfc8 19. Nc5 Be8 {½-½ (41) Burovic,I (2332)-Stojanovic,M (2263) Arandjelovac 2018}) 14. Nbd2 {[%emt 0:01:41]} Na5 {[%emt 0:02:19]} 15. b3 {[%emt 0:02:12]} Qb6 {[%emt 0:02:05]} 16. Nf1 {[%emt 0:00:33]} Rfc8 {[%emt 0:01:56]} 17. Qd2 {[%emt 0:03:20]} Bf8 {[%emt 0:02:20]} 18. Reb1 {[%emt 0:03:30]} Nec6 {[%emt 0:05:27]} (18... Nf5 $11) 19. Qf2 {[%emt 0:01:59]} Nb4 {[%emt 0:04:20] [#] Hoping for ...Nc2.} 20. Ne1 {[%emt 0:02:03] Against Nc2} Nbc6 {[%emt 0:02:29]} 21. Nd3 {[%emt 0:11:17]} b4 {[%emt 0:02:15]} 22. g4 {[%emt 0:01:45]} Qb5 {[%emt 0:04:33]} (22... Ne7 $142) 23. Rd1 $16 {[%emt 0:00:26]} Nb7 {[%emt 0:00:47]} 24. Ng3 {[%emt 0:01:00]} Ne7 {[%emt 0:01:06] Inhibits f5.} 25. h4 {[%emt 0:06:21][%cal Bh2h4,Bh4h5][%mdl 32] White is more active.} Rc3 {[%emt 0:03:07] [#]} (25... a5 $142) 26. Bf1 $1 {[%emt 0:00:56]} Rbc8 {[%emt 0:01:00]} (26... Qb6 $16) 27. Nc5 $1 $18 {[%emt 0:01:20]} Qc6 {[%emt 0:00:22][%cal Rb7c5]} 28. Nxd7 {[%emt 0:00:28]} Qxd7 {[%emt 0:00:06]} 29. Bd3 {[%emt 0:00:30]} a5 {[%emt 0:04:37]} 30. h5 {[%emt 0:02:17]} Bh6 {[%emt 0:05:20]} (30... a4 $142) 31. Ne2 {[%emt 0:04:43]} R3c7 {[%emt 0:00:51]} 32. Rf1 {[%emt 0:00:38]} Qe8 {[%emt 0:03:51]} (32... Bg7 $142 33. Qh4 Nd8) 33. f5 {[%emt 0:03:16]} Bxe3 {[%emt 0:00:37]} 34. Qxe3 {[%emt 0:00:06]} exf5 {[%emt 0:05:04]} 35. gxf5 {[%emt 0:02:05]} Nxf5 {[%emt 0:00:13]} (35... Kh8 $142 36. Qg5 Ng8 37. hxg6 fxg6 38. fxg6 Rg7) 36. Bxf5 {[%emt 0:00:38]} gxf5 {[%emt 0:00:06]} 37. Rxf5 {[%emt 0:01:23]} ({White has to play} 37. Qg5+ $18 Kf8 38. Ng3) 37... f6 {[%emt 0:00:22]} (37... Kh8 $11 {keeps the balance.}) 38. Qf3 {[%emt 0:06:22] Threatens to win with Kh1.} ({Resist} 38. Rxf6 Qxh5 39. Kf2 Qh2+ 40. Ke1 Rc2 $16) 38... fxe5 {[%emt 0:03:55]} 39. Qxd5+ {[%emt 0:00:54]} Kh8 {[%emt 0:00:09]} 40. Qxe5+ {[%emt 0:01:13]} Qxe5 {[%emt 0:00:12]} 41. Rxe5 {[%emt 0:00:11]} (41. dxe5 $16 {With the idea e6.} Rc5 42. Nd4) 41... Rc2 {[%emt 0:00:19]} ({Better is} 41... Rf7 $11) 42. Kf2 $1 $14 {[%emt 0:01:32]} Rd2 {[%emt 0:01:33]} (42... a4 $14) 43. Ke3 $18 {[%emt 0:07:49]} Rcc2 {[%emt 0:04:08]} (43... Rb2 44. h6 Rd8) 44. Nf4 {[%emt 0:00:45] White is clearly winning.} Nd6 {[%emt 0:00:38] Against Re8+} 45. Rd5 {[%emt 0:02:35]} Nf7 {[%emt 0:00:53]} 46. Rg1 {[%emt 0:02:25] Weighted Error Value: White=0.30/Black=0.41} 1-0

[Event "Rudolf Teschner GT 2022"]
[Site "Berlin"]
[Date "2022.05.27"]
[Round "4.4"]
[White "Strache, Michael"]
[Black "Tscheuschner, Georg"]
[Result "1/2-1/2"]
[ECO "A03"]
[WhiteElo "2302"]
[BlackElo "2150"]
[Annotator "TA"]
[PlyCount "85"]
[EventDate "2022.05.25"]
[EventType "swiss"]
[EventCountry "GER"]
[SourceTitle "playchess.com"]
[Source "ChessBase"]
[SourceQuality "1"]
[TimeControl "5400+30"]

{[%evp 9,85,-18,-13,-36,-8,-17,-10,-45,-42,-50,-9,-5,-7,-4,-5,-8,0,-8,0,0,48,47,39,48,48,49,43,52,52,58,311,305,468,466,735,731,699,456,443,306,1016,997,933,424,396,75,82,67,81,60,83,76,85,77,80,0,0,0,0,0,0,0,0,0,0,0,0,0,0,0,0,0,0,0,0,0,0,0]} 1. f4 {[%emt 0:00:03]} d5 {[%emt 0:00:05]} 2. Nf3 {[%emt 0:00:05]} Nf6 {[%emt 0:00:06]} 3. g3 {[%emt 0:00:06]} Bg4 {[%emt 0:01:50]} 4. Bg2 {[%emt 0:00:07]} Nbd7 {[%emt 0:00:59]} 5. O-O {[%emt 0:01:16]} c6 {[%emt 0:01:21]} 6. Qe1 {[%emt 0:12:07] [#] A03: Bird's Opening with 1...d5.} Qc7 $146 {[%emt 0:04:00]} (6... Bxf3 $5 7. Rxf3 e5 $11) ({Predecessor:} 6... Bxf3 7. Rxf3 Qc7 8. d3 O-O-O 9. Nc3 e5 10. fxe5 Nxe5 11. Bh3+ Kb8 12. Rf5 Ka8 {½-½ (30) Nogatz,F (1635)-Fuchs,J (1930) Berlin 2007}) 7. d4 {[%emt 0:01:56][%cal Oc2c4]} e6 {[%emt 0:03:26]} 8. c3 {[%emt 0:02:40]} (8. c4 $5) 8... Bf5 {[%emt 0:14:25]} 9. Nbd2 {[%emt 0:06:45]} Ne4 {[%emt 0:00:29]} 10. Ng5 {[%emt 0:06:04][%cal Rg5e4]} Ndf6 {[%emt 0:16:04]} 11. Ngxe4 {[%emt 0:14:11]} Nxe4 {[%emt 0:00:17]} (11... dxe4 {feels hotter.} 12. h3 h5 13. b3 Rg8) 12. Nxe4 {[%emt 0:03:25]} Bxe4 {[%emt 0:00:16]} 13. Bxe4 {[%emt 0:04:51]} dxe4 {[%emt 0:00:04]} 14. f5 {[%emt 0:00:04]} e5 {[%emt 0:07:43]} (14... exf5 $11 {should be considered.} 15. Rxf5 Bd6) 15. Be3 $14 {[%emt 0:04:36]} Bd6 {[%emt 0:04:05]} 16. Qb1 {[%emt 0:05:18]} O-O-O {[%emt 0:02:07] [#] Threatens to win with ...exd4.} 17. Qxe4 {[%emt 0:01:34]} exd4 {[%emt 0:12:47]} 18. Bxd4 {[%emt 0:00:07]} Rhe8 {[%emt 0:00:17]} 19. Qf3 {[%emt 0:01:37]} Qe7 $2 {[%emt 0:07:10][%mdl 8192]} (19... Be5 $14) 20. f6 $18 {[%emt 0:02:46][%cal Bf5f6,Bf6g7][%mdl 32]} (20. Bxa7 Qxe2 21. Qxe2 Rxe2 $14) (20. Bxg7 Bc5+ 21. Bd4 Bxd4+ 22. cxd4 Rxd4 $11) 20... Qxe2 {[%emt 0:01:58]} (20... Qe6 $142 21. fxg7 c5) 21. fxg7 {[%emt 0:01:41]} Qxb2 {[%emt 0:04:05]} (21... Qxf3 $142 22. Rxf3 Rg8 23. Rxf7 Rd7) 22. Qxf7 {[%emt 0:15:45]} Re2 {[%emt 0:00:32]} 23. Bf2 {[%emt 0:03:50]} (23. g8=Q $2 Rg2+ 24. Kh1 Rxh2+ 25. Kg1 Qg2#) 23... Rxf2 {[%emt 0:00:39]} 24. Qxf2 {[%emt 0:00:21]} Qxc3 {[%emt 0:03:41]} (24... Qxf2+ 25. Kxf2 Rg8) 25. Qf5+ {[%emt 0:03:41]} Kb8 {[%emt 0:00:27]} 26. Qg4 {[%emt 0:00:30]} (26. Qf7 $142) 26... Rg8 {[%emt 0:03:04]} 27. Rf8+ $2 {[%emt 0:05:30]} Bxf8 $16 {[%emt 0:01:35]} (27... Rxf8 $2 28. gxf8=Q+ Bxf8 29. Qf4+ Kc8 30. Qxf8+ $18) 28. Qf4+ {[%emt 0:00:17]} Bd6 $1 {[%emt 0:00:09]} 29. Qxd6+ {[%emt 0:00:23][%mdl 4096] Endgame KQR-KQR} Kc8 {[%emt 0:00:15]} 30. Qe6+ {[%emt 0:01:45]} Kc7 {[%emt 0:00:09]} 31. Qf7+ {[%emt 0:00:12]} (31. Qxg8 $6 Qe3+ 32. Kg2 Qe2+ 33. Kh1 Qf3+ 34. Kg1 Qe3+ 35. Kg2 Qe2+ 36. Kh3 Qh5+ 37. Kg2 Qe2+ $11) 31... Kb6 {[%emt 0:02:14]} 32. Qxg8 {[%emt 0:00:56]} ({White should play} 32. Rb1+ $16 Ka5 33. Qc7+ (33. Qxg8 Qe3+ 34. Kg2 Qe2+ 35. Kg1 Qe3+ 36. Kh1 Qe4+ 37. Kg1 Qe3+ $11) (33. Qxb7 Rxg7 34. Qb8 Qd4+ 35. Kg2 Re7 $11) 33... Ka4 34. Qf4+ (34. Qxb7 Qe3+ 35. Kf1 Qd3+ 36. Kf2 Qd2+ 37. Kg1 Qe3+ 38. Kh1 Qe4+ 39. Kg1 Qe3+ $11) 34... Ka5 35. Rc1 (35. Rxb7 Rxg7 36. Qf5+ Ka6 $11) (35. Qc7+ Ka4 $16) 35... Qxg7 36. Qe3) 32... Qe3+ $1 $11 {[%emt 0:01:38] The position is equal.} 33. Kf1 $1 {[%emt 0:01:13]} Qf3+ {[%emt 0:00:05]} 34. Ke1 {[%emt 0:00:21]} Qe3+ {[%emt 0:00:03]} 35. Kd1 {[%emt 0:00:17]} Qd3+ {[%emt 0:00:05]} 36. Kc1 {[%emt 0:00:12] Threatening mate with Qb3+.} Qc3+ {[%emt 0:00:06]} 37. Kb1 {[%emt 0:00:06]} Qd3+ {[%emt 0:00:09]} 38. Kb2 {[%emt 0:00:13]} (38. Kc1 $5 {[%cal Rg8b3]} Qe3+ 39. Kc2 Qe2+ 40. Kb3 Qd3+ 41. Ka4 (41. Kb2 Qd2+ 42. Kb1 Qe1+ 43. Kc2 Qe2+ 44. Kb3 Qe3+ 45. Kb4 Qe7+ 46. Kc4 Qe4+ 47. Kc3 Qe3+ 48. Kc4 Qe4+ 49. Kc3 Qe3+ 50. Kb4 Qc5+ 51. Kb3 Qe3+ 52. Kc4 Qe4+ $11) 41... Qd4+ 42. Kb3 Qe3+ 43. Kc4 Qe4+ 44. Kc3 (44. Kb3 Qe3+ 45. Kc4 Qe4+ 46. Kc3 Qe3+ 47. Kc4 $11) 44... Qe3+ 45. Kc4 Qe4+ 46. Kc3 (46. Kb3 Qe3+ 47. Kc4 $11) 46... Qe3+ 47. Kc4 $11) 38... Qd2+ {[%emt 0:00:56]} 39. Ka3 {[%emt 0:00:29] White threatens Qc4 and mate.} Qd6+ {[%emt 0:00:23]} 40. Ka4 {[%emt 0:01:02] White wants to mate with Rb1+.} Qd4+ {[%emt 0:00:16]} 41. Kb3 {[%emt 0:00:15]} Qd3+ {[%emt 0:00:17]} 42. Kb2 {[%emt 0:00:40] Qb3+ would kill now.} Qd2+ {[%emt 0:00:09]} 43. Kb3 {[%emt 0:00:05] Black escapes into a draw.  Weighted Error Value: White=0.51/Black=0.24 (precise)} 1/2-1/2